bitfinex/quotes_ETHUSD_20250725
["timestamp","ask_amount","ask_price","bid_price","bid_amount"]
[1753452965997,0.002,3691.4,3691.3,3.1352]
[1753452966152,0.002,3691.4,3691.3,0.1352]
[1753452966354,1.4194,3691.4,3691.3,0.1352]
[1753452967702,1.4194,3691.4,3690.2,3.0]
[1753452967703,4.54122927,3691.4,3690.1,0.1911]
[1753452967906,8.36746846,3691.2,3689.0,2.7107233]
[1753452968056,2.70943968,3690.8,3690.2,0.1352]
[1753452968400,2.71010495,3689.9,3689.0,4.52174092]
[1753452968603,1.4174,3689.8,3689.6,0.1352]
[1753452969099,0.03387442,3690.1,3689.6,0.1352]
[1753452969100,1.4174,3689.7,3689.6,0.1352]
[1753452969796,4.12764744,3689.7,3689.6,0.1352]
[1753452970295,2.71039436,3689.5,3689.4,0.1352]
[1753452970499,2.71039436,3689.5,3687.9,2.71156507]
[1753452970500,1.45127901,3689.6,3687.9,0.1911]
[1753452970685,2.71063591,3689.2,3688.9,0.1352]
[1753452970892,1.4174,3689.1,3688.9,0.1352]
[1753452971260,2.71105568,3688.6,3687.3,0.1911]
[1753452971473,4.12852918,3688.5,3688.4,0.1352]
[1753452971757,4.12855606,3688.5,3687.3,0.39192533]
[1753452971962,0.16908819,3688.6,3688.1,0.1352]
[1753452972180,2.71127806,3688.3,3688.1,0.1352]
[1753452972359,4.1287497,3688.2,3688.1,0.1352]
[1753452972561,2.71160844,3687.9,3687.1,0.001]
[1753452972789,2.71160844,3687.9,3687.6,0.1352]
[1753452972972,1.4174,3687.8,3687.6,0.1352]
[1753452973159,0.9637,3688.2,3687.1,0.001]
[1753452973160,4.12911733,3687.7,3687.1,0.001]
[1753452973357,2.71193542,3687.5,3687.1,0.001]
[1753452973561,2.71193795,3687.4,3687.3,0.136]
[1753452973803,1.4174,3687.6,3687.3,0.136]
[1753452973970,0.1352,3687.8,3687.3,0.136]
[1753452973971,1.4174,3687.4,3687.3,0.136]
[1753452975004,3.15968028,3688.6,3687.3,0.136]
[1753452975005,4.315,3687.7,3687.3,0.136]
[1753452975310,0.4558,3687.4,3687.3,0.136]
[1753452975798,0.1352,3687.8,3687.3,0.136]
[1753452975799,5.2776,3687.8,3687.3,0.136]
[1753452975999,4.317,3687.9,3687.3,0.136]
[1753452976199,1.4174,3687.7,3687.1,0.001]
[1753452976360,0.4558,3688.2,3687.6,0.1352]
[1753452976564,0.9616,3688.5,3687.6,0.1352]
[1753452976798,0.4558,3688.6,3687.8,0.55]
[1753452977005,0.4558,3688.6,3688.5,0.1352]
[1753452977388,0.4558,3688.6,3687.4,4.317]
[1753452977389,4.12848394,3688.6,3687.4,4.317]
[1753452977590,1.45128911,3688.5,3687.1,0.551]
[1753452977789,2.71128601,3688.3,3688.0,0.1352]
[1753452978001,0.42977751,3688.3,3687.2,3.0]
[1753452978209,1.4174,3688.4,3687.9,0.1352]
[1753452978380,1.4174,3688.3,3687.9,0.1352]
[1753452978581,4.319,3688.6,3687.3,1.4676]
[1753452978814,4.319,3688.6,3688.2,0.1352]
[1753452979022,1.4174,3688.5,3688.2,0.1352]
[1753452979513,1.4174,3688.4,3688.2,0.1352]
[1753452980620,1.4174,3688.3,3688.2,0.1352]
[1753452981002,1.5526,3688.3,3687.8,0.1352]
[1753452981205,2.71144974,3688.1,3687.8,0.1352]
[1753452981502,1.45129187,3688.2,3687.1,0.001]
[1753452981503,0.847,3687.9,3687.1,0.001]
[1753452981676,2.7118688,3687.5,3687.1,0.001]
[1753452981875,0.03389922,3687.4,3687.1,0.001]
[1753452982126,1.4174,3687.4,3687.1,0.001]
[1753452982424,1.4174,3687.3,3687.1,0.001]
[1753452982624,4.12941845,3687.3,3687.1,0.001]
[1753452982927,1.4174,3687.2,3687.1,0.001]
[1753452983633,0.9616,3688.3,3687.2,0.55]
[1753452983799,3.67294179,3688.3,3687.1,0.9186]
[1753452984128,1.45129187,3688.2,3687.1,0.001]
[1753452984488,0.9616,3688.1,3687.1,0.001]
[1753452984829,4.32,3688.0,3687.1,0.001]
[1753452984986,0.03389462,3687.9,3687.1,0.001]
[1753452985186,2.71167461,3687.8,3687.1,0.001]
[1753452985401,0.03389646,3687.7,3687.1,0.001]
[1753452985835,1.4174,3687.6,3687.1,0.001]
[1753452986137,3.53778505,3687.2,3687.1,0.001]
[1753452986297,8.48815299,3687.2,3687.1,0.001]
[1753452986498,12.90555299,3687.2,3687.1,0.001]
[1753452987029,12.90455299,3687.2,3687.1,0.001]
[1753452987822,2.2431,3687.2,3687.1,0.001]
[1753452988034,1.4174,3687.2,3687.1,0.001]
[1753452988195,0.57374,3688.0,3687.1,0.001]
[1753452988196,8.36746846,3689.2,3687.1,0.001]
[1753452988395,1.4174,3688.1,3687.1,0.9186]
[1753452988635,4.329,3688.0,3687.1,0.9186]
[1753452989797,1.4174,3688.1,3687.1,0.9186]
[1753452989995,4.326,3688.0,3687.1,0.9186]
[1753452990617,4.12902508,3687.9,3687.1,0.001]
[1753452990805,1.4174,3687.9,3687.1,0.001]
[1753452991433,4.1289885,3687.9,3687.1,0.001]
[1753452991610,4.324,3687.8,3687.1,0.001]
[1753452992235,1.4174,3687.9,3687.1,0.001]
[1753452992540,4.322,3688.1,3687.2,0.4891]
[1753452992916,1.4174,3688.3,3687.2,0.4891]
[1753452993139,4.322,3688.2,3687.2,0.4891]
[1753452993533,4.322,3688.2,3687.9,0.1352]
[1753452993762,0.1352,3688.0,3687.1,0.001]
[1753452993935,0.03389462,3687.9,3687.4,0.1352]
[1753452994140,1.4174,3687.8,3687.4,0.1352]
[1753452994459,1.4174,3687.7,3687.4,0.1352]
[1753452994822,1.4174,3687.7,3687.1,0.001]
[1753452994823,1.4174,3687.6,3687.1,0.001]
[1753452995029,1.4174,3687.6,3687.2,0.136]
[1753452995256,1.4174,3687.5,3687.2,0.136]
[1753452995916,1.4174,3687.4,3687.2,0.136]
[1753452996121,7.16694005,3687.7,3687.2,0.136]
[1753452996322,1.4093,3687.3,3687.2,0.136]
[1753452996565,4.12131149,3687.3,3687.2,0.136]
[1753452996858,4.12131149,3687.3,3687.1,0.137]
[1753452997066,1.4093,3687.2,3687.1,0.137]
[1753452998052,0.1352,3687.7,3687.1,0.137]
[1753452998269,0.9599,3687.7,3687.1,0.137]
[1753452998474,4.32,3687.8,3687.2,0.4891]
[1753452998626,4.32,3687.8,3687.6,0.1352]
[1753452999058,1.4093,3688.2,3687.6,0.1352]
[1753452999286,0.1352,3688.4,3687.6,0.1352]
[1753452999460,4.319,3688.4,3687.6,0.9633]
[1753452999648,4.319,3688.4,3688.1,0.1352]
[1753453000057,0.4494,3688.3,3688.1,0.1352]
[1753453000260,1.4093,3688.2,3687.2,0.4891]
[1753453000573,2.71148851,3688.1,3687.8,0.1352]
[1753453000964,1.4431937,3688.0,3687.2,0.4891]
[1753453001274,1.4431937,3688.0,3687.6,0.1352]
[1753453001582,1.4093,3687.9,3687.6,0.1352]
[1753453001941,1.4093,3687.9,3687.1,0.001]
[1753453001942,5.76019554,3687.8,3687.1,0.001]
[1753453002147,2.71177019,3687.7,3687.3,0.136]
[1753453002370,1.4093,3687.7,3687.3,0.136]
[1753453002568,8.43901832,3687.7,3687.3,0.136]
[1753453002774,4.318,3687.7,3687.3,0.136]
[1753453003097,1.44319738,3687.6,3687.3,0.136]
[1753453003378,2.7118644,3687.5,3687.1,0.137]
[1753453003555,2.71202176,3687.3,3687.1,0.001]
[1753453003755,2.7120179,3687.3,3687.1,0.001]
[1753453003971,0.4494,3687.2,3687.1,0.001]
[1753453004158,1.4093,3687.2,3687.1,0.001]
[1753453004717,0.1352,3687.5,3687.1,0.001]
[1753453004870,4.316,3687.6,3687.2,0.136]
[1753453005076,4.316,3687.6,3687.1,0.001]
[1753453005077,2.71201149,3687.3,3687.1,0.001]
[1753453005272,7.06198611,3687.2,3687.1,0.001]
[1753453005485,5.7253,3687.2,3687.1,0.001]
[1753453005713,8.43738505,3687.2,3687.1,0.001]
[1753453005916,10.50171929,3687.2,3687.1,0.001]
[1753453006475,6.18571929,3687.2,3687.1,0.001]
[1753453006710,9.37218505,3687.2,3687.1,0.001]
[1753453007023,7.47648505,3687.2,3687.1,0.001]
[1753453007220,8.43638505,3687.2,3687.1,0.001]
[1753453008316,4.315,3687.2,3687.1,0.001]
[1753453008489,4.312,3687.2,3687.1,0.001]
[1753453008696,1.0951,3687.5,3687.1,0.001]
[1753453009001,4.312,3687.4,3687.1,0.001]
[1753453009202,0.1352,3687.6,3687.1,0.001]
[1753453009395,0.55,3688.9,3687.1,0.001]
[1753453009396,2.71073748,3689.1,3687.1,0.001]
[1753453009592,4.311,3687.9,3687.5,0.1352]
[1753453010323,4.312,3688.1,3687.8,0.1352]
[1753453010477,2.84634392,3688.5,3687.8,0.1352]
[1753453010685,4.312,3688.4,3687.8,0.1352]
[1753453011000,0.1352,3688.5,3687.8,0.1352]
[1753453011204,2.71091151,3688.8,3688.4,0.1352]
[1753453011375,4.31,3688.5,3688.4,0.1352]
[1753453011775,5.7193,3688.5,3687.7,0.9633]
[1753453011991,4.31,3688.5,3688.2,0.1352]
[1753453012231,2.84620264,3688.7,3688.2,0.1352]
[1753453012445,4.309,3688.4,3688.2,0.1352]
[1753453012606,4.308,3688.5,3688.2,0.1352]
[1753453013438,8.42843569,3688.5,3688.2,0.1352]
[1753453013643,2.71139841,3688.2,3687.6,0.4891]
[1753453013795,2.71161979,3687.9,3687.2,0.4891]
[1753453013999,4.308,3688.0,3687.7,0.1352]
[1753453014241,5.7173,3688.0,3687.7,0.1352]
[1753453014444,5.7173,3688.0,3687.2,0.4891]
[1753453014445,2.71164379,3687.8,3687.2,0.4891]
[1753453014643,1.44319462,3687.9,3687.6,0.1352]
[1753453014807,1.4093,3687.8,3687.2,0.4891]
[1753453015004,2.71179086,3687.6,3687.5,0.1352]
[1753453015209,2.71193368,3687.5,3687.1,0.001]
[1753453015407,4.307,3687.6,3687.1,0.137]
[1753453015408,2.71195634,3687.4,3687.1,0.137]
[1753453015610,2.71195864,3687.4,3687.1,0.137]
[1753453015847,1.4093,3687.3,3687.1,0.137]
[1753453016726,5.7163,3687.3,3687.1,0.137]
[1753453016941,4.12138505,3687.2,3687.1,0.137]
[1753453017144,4.12138505,3687.2,3687.1,0.001]
[1753453017343,5.47071344,3687.2,3687.1,0.001]
[1753453017546,4.25738505,3687.2,3687.1,0.001]
[1753453018257,4.29128611,3687.2,3687.1,0.001]
[1753453018412,4.25738505,3687.2,3687.1,0.001]
[1753453019229,4.307,3687.3,3687.1,0.001]
[1753453019413,7.01901198,3687.3,3687.1,0.001]
[1753453019852,0.1352,3687.5,3687.2,0.4896]
[1753453020010,2.71170455,3687.8,3687.2,0.6256]
[1753453020214,4.307,3687.6,3687.4,0.1352]
[1753453020624,4.1211644,3687.5,3687.4,0.1352]
[1753453020824,1.4093,3687.5,3687.1,0.137]
[1753453021055,4.4422,3687.6,3687.1,0.001]
[1753453021056,4.307,3687.6,3687.1,0.001]
[1753453021262,7.01880063,3687.6,3687.4,0.1352]
[1753453021421,2.7457627,3687.5,3687.1,0.001]
[1753453021627,4.1211644,3687.5,3687.1,0.137]
[1753453021925,1.4093,3687.5,3687.1,0.137]
[1753453022449,2.71208505,3687.2,3687.1,0.001]
[1753453022650,7.70681335,3687.2,3687.1,0.001]
[1753453022828,9.11611335,3687.2,3687.1,0.001]
[1753453023023,8.42938505,3687.2,3687.1,0.001]
[1753453023351,8.56538505,3687.2,3687.1,0.001]
[1753453027656,4.444,3687.2,3687.1,0.001]
[1753453027869,7.02008505,3687.2,3687.1,0.001]
[1753453028019,8.47328505,3687.2,3687.1,0.001]
[1753453028921,2.84808505,3687.2,3687.1,0.001]
[1753453029123,8.47328505,3687.2,3687.1,0.001]
[1753453029338,7.02008505,3687.2,3687.1,0.001]
[1753453029744,8.47328505,3687.2,3687.1,0.001]
[1753453030077,9.87653381,3687.2,3687.1,0.001]
[1753453030274,8.47328505,3687.2,3687.1,0.001]
[1753453031244,9.51718505,3687.2,3687.1,0.001]
[1753453033445,3.75598505,3687.2,3687.1,0.001]
[1753453033647,7.15508505,3687.2,3687.1,0.001]
[1753453034520,7.01908505,3687.2,3687.1,0.001]
[1753453034879,2.71208505,3687.2,3687.1,0.001]
[1753453035217,1.4532,3688.0,3687.1,0.001]
[1753453035218,1.4532,3688.0,3687.1,0.9747]
[1753453035219,4.307,3687.3,3687.1,0.9747]
[1753453035425,4.307,3687.2,3687.1,0.9747]
[1753453035591,7.01908505,3687.2,3687.1,0.9747]
[1753453035797,7.01908505,3687.2,3687.1,0.001]
[1753453036398,4.307,3687.3,3687.1,0.9747]
[1753453036595,7.01901149,3687.3,3687.2,0.9737]
[1753453037126,2.71188593,3687.5,3687.2,0.9737]
[1753453037127,0.1352,3687.6,3687.2,0.9737]
[1753453037300,2.71179873,3687.6,3687.3,0.9737]
[1753453037496,2.71179873,3687.6,3687.1,0.001]
[1753453037696,2.71165082,3687.8,3687.1,0.001]
[1753453037697,2.71208505,3687.2,3687.1,0.001]
[1753453037899,8.14089718,3687.2,3687.1,0.001]
[1753453038102,9.73009718,3687.2,3687.1,0.001]
[1753453038407,7.15508505,3687.2,3687.1,0.001]
[1753453038727,8.60828505,3687.2,3687.1,0.001]
[1753453039087,8.60828505,3687.2,3686.3,1e-08]
[1753453039088,3.70120002,3686.5,3686.3,1e-08]
[1753453039297,5.71311519,3685.8,3685.6,0.136]
[1753453039498,6.70178881,3685.7,3685.6,1e-08]
[1753453039705,6.70178881,3685.7,3684.7,0.136]
[1753453039706,5.71333548,3685.6,3684.7,0.136]
[1753453039888,2.71443253,3684.1,3683.8,0.4896]
[1753453040117,8.36746846,3685.0,3683.8,0.4896]
[1753453040118,4.307,3684.3,3683.8,0.4896]
[1753453040323,2.71436714,3684.1,3684.0,0.136]
[1753453040620,2.71462015,3683.8,3683.2,0.4896]
[1753453040835,4.307,3683.8,3683.2,0.4896]
[1753453041014,4.307,3683.8,3683.7,0.136]
[1753453041210,8.47478819,3683.8,3683.7,0.136]
[1753453041721,8.47478819,3683.8,3682.8,0.4896]
[1753453041722,5.7602,3683.8,3683.4,0.136]
[1753453041893,1.48713327,3683.7,3682.8,0.4896]
[1753453042090,2.71482697,3683.5,3683.3,0.136]
[1753453042294,4.308,3683.4,3683.2,0.136]
[1753453042515,8.51003833,3683.4,3682.8,0.4896]
[1753453042829,0.03393695,3683.3,3682.9,0.136]
[1753453043125,5.7602,3683.2,3682.7,0.136]
[1753453043294,0.0339388,3683.1,3682.7,0.136]
[1753453043487,5.7602,3683.2,3682.7,0.136]
[1753453043488,4.307,3683.0,3682.7,0.136]
[1753453043890,0.9468,3684.4,3682.8,1.4633]
[1753453044118,4.4532,3684.2,3682.8,1.4633]
[1753453044290,5.4239,3684.1,3682.8,0.4896]
[1753453044485,2.71469218,3683.7,3682.8,0.4896]
[1753453044691,4.307,3683.6,3682.8,0.4896]
[1753453045200,0.9932,3683.8,3682.8,0.4896]
[1753453045399,2.71445726,3684.0,3682.8,1.4633]
[1753453045600,4.308,3683.9,3682.9,1.303]
[1753453045800,4.80193235,3683.8,3682.8,0.4896]
[1753453046001,0.9272,3683.6,3682.8,0.4896]
[1753453046218,1.4532,3683.5,3682.4,0.4896]
[1753453046534,4.308,3683.4,3682.4,0.4896]
[1753453046827,4.308,3683.3,3682.4,0.4896]
[1753453047190,1.4532,3683.2,3682.4,0.4896]
[1753453048301,1.9204,3683.6,3682.4,0.4896]
[1753453048506,2.71458881,3683.8,3682.5,1.5237]
[1753453048825,2.77706573,3684.0,3682.4,0.8189]
[1753453048826,2.71486872,3683.5,3682.4,0.4896]
[1753453049127,2.71497288,3683.3,3682.4,0.4896]
[1753453049312,4.309,3683.2,3682.4,0.4896]
[1753453049924,7.02404606,3683.2,3682.4,0.4896]
[1753453050110,1.4532,3683.1,3682.4,0.4896]
[1753453050312,2.71527503,3682.9,3682.0,0.4889]
[1753453050625,2.7155655,3682.5,3682.0,0.4889]
[1753453050800,4.309,3682.4,3681.8,0.001]
[1753453051334,1.4532,3682.3,3681.8,0.001]
[1753453051634,2.71577081,3682.2,3681.8,0.001]
[1753453051819,1.4532,3682.2,3681.8,0.001]
[1753453052020,2.71577891,3682.2,3681.8,0.001]
[1753453052233,1.4532,3682.1,3681.8,0.001]
[1753453052639,1.4532,3682.6,3681.8,0.9747]
[1753453052997,4.309,3682.5,3681.8,0.9747]
[1753453053210,4.309,3682.5,3681.9,0.4889]
[1753453053422,1.4532,3682.8,3681.9,0.4889]
[1753453053423,4.309,3682.4,3681.9,0.4889]
[1753453053626,2.71519536,3683.0,3682.0,0.9737]
[1753453053838,4.309,3682.9,3681.9,0.4889]
[1753453054039,2.39758818,3682.8,3681.9,0.4889]
[1753453054211,2.39758818,3682.8,3681.8,0.001]
[1753453054212,3.0,3682.6,3681.8,0.001]
[1753453054540,3.0,3682.4,3681.8,0.137]
[1753453054742,4.31,3682.3,3681.8,0.137]
[1753453054900,0.136,3682.4,3681.8,0.137]
[1753453055102,0.136,3682.6,3682.1,0.136]
[1753453055342,0.136,3682.6,3681.8,0.551]
[1753453055343,4.31,3682.6,3682.4,0.136]
[1753453055700,4.31,3682.8,3682.4,0.136]
[1753453055999,4.787,3682.8,3682.3,0.4889]
[1753453056204,4.787,3682.8,3681.8,0.001]
[1753453056205,4.14375859,3682.7,3682.2,0.136]
[1753453056406,1.4283,3682.7,3682.2,0.136]
[1753453056818,2.71569399,3682.3,3682.2,0.136]
[1753453057005,1.4283,3682.3,3681.8,0.001]
[1753453057222,2.71598902,3681.9,3681.8,0.001]
[1753453057444,2.85188227,3682.1,3681.8,0.001]
[1753453057445,4.34394894,3682.0,3681.8,0.001]
[1753453057599,4.14428902,3681.9,3681.8,0.001]
[1753453057805,4.28028902,3681.9,3681.8,0.001]
[1753453058142,9.50498902,3681.9,3681.8,0.001]
[1753453058344,11.02707401,3681.9,3681.8,0.001]
[1753453058716,22.39454247,3681.9,3681.8,0.001]
[1753453058913,3.64773169,3681.3,3681.1,1e-08]
[1753453059132,5.75046179,3681.2,3681.1,1e-08]
[1753453059332,7.28080548,3681.2,3681.1,1e-08]
[1753453059535,9.48203886,3681.2,3681.1,1e-08]
[1753453059738,4.14453275,3681.6,3681.1,1e-08]
[1753453059937,0.136,3681.5,3681.1,1e-08]
[1753453060259,2.71650548,3681.2,3681.1,1e-08]
[1753453060439,2.85250548,3681.2,3681.1,1e-08]
[1753453060775,2.71680069,3680.8,3680.5,0.004]
[1753453060925,8.59081013,3680.8,3680.5,0.004]
[1753453061125,10.12115013,3680.8,3680.5,0.004]
[1753453061334,10.12415013,3680.8,3680.5,0.004]
[1753453061550,13.12415013,3680.8,3680.5,0.004]
[1753453062167,2.09674944,3680.8,3680.5,0.004]
[1753453062307,4.337,3681.5,3680.7,0.9624]
[1753453062514,0.136,3681.3,3680.7,1.0984]
[1753453062831,3.16332587,3682.4,3681.3,0.136]
[1753453063028,0.136,3682.2,3681.2,1.4473]
[1753453063242,0.03394801,3682.1,3681.2,0.4889]
[1753453063549,0.136,3681.8,3681.3,0.136]
[1753453063924,2.71628101,3681.6,3681.2,0.4889]
[1753453064126,0.136,3681.6,3681.2,0.4889]
[1753453064549,2.85210331,3681.8,3681.3,0.136]
[1753453064750,0.136,3681.8,3681.3,0.136]
[1753453064950,4.34,3682.1,3681.2,0.4889]
[1753453065188,13.55588165,3682.1,3681.2,0.4889]
[1753453065348,13.55588165,3682.1,3680.7,0.004]
[1753453065349,2.71643169,3681.3,3680.8,0.4889]
[1753453065565,2.71635618,3681.5,3680.8,0.4889]
[1753453065807,2.71629454,3681.5,3680.8,1.4473]
[1753453065954,4.339,3681.6,3680.8,1.4473]
[1753453066351,8.03666756,3681.8,3680.8,1.4473]
[1753453066568,2.71624557,3681.6,3680.8,1.4473]
[1753453066766,2.71614619,3681.7,3680.8,1.4473]
[1753453066950,0.03395262,3681.6,3680.8,0.4889]
[1753453067155,2.71629302,3681.5,3680.8,0.4889]
[1753453067650,0.931,3681.8,3680.8,0.4889]
[1753453067853,2.71621034,3681.6,3680.8,0.4889]
[1753453068388,2.75026053,3681.5,3680.8,0.4889]
[1753453068591,2.71637471,3681.4,3680.8,0.4889]
[1753453068888,2.71661449,3681.1,3680.8,0.4889]
[1753453069283,4.14491449,3681.1,3680.8,0.4889]
[1753453069484,2.71665494,3681.0,3680.8,0.4889]
[1753453069803,1.4283,3681.1,3680.7,0.004]
[1753453069959,2.71680069,3680.8,3680.7,0.004]
[1753453070589,1.4283,3680.9,3680.7,0.004]
[1753453070993,3.0,3681.5,3680.7,0.004]
[1753453070994,4.17906069,3680.8,3680.7,0.004]
[1753453071182,7.17906069,3680.8,3680.7,0.004]
[1753453071492,7.14510069,3680.8,3680.7,0.004]
[1753453071657,5.22895708,3680.8,3680.7,0.004]
[1753453072300,4.14510069,3680.8,3680.7,0.004]
[1753453072665,4.17906069,3680.8,3680.7,0.004]
[1753453073006,4.14510069,3680.8,3680.7,0.004]
[1753453073807,5.05140069,3680.8,3680.7,1e-08]
[1753453074293,2.71694832,3680.6,3680.5,1e-08]
[1753453074463,4.26404107,3680.6,3680.5,1e-08]
[1753453074662,5.69234107,3680.6,3680.5,1e-08]
[1753453074855,10.94917922,3680.6,3679.9,0.001]
[1753453075198,3.8237913,3680.0,3679.9,0.001]
[1753453075380,3.85775869,3680.0,3679.9,0.001]
[1753453075553,7.17944363,3680.0,3679.9,0.001]
[1753453076366,7.17944363,3680.0,3679.5,0.004]
[1753453076367,6.6250867,3679.6,3679.5,0.004]
[1753453076567,6.6250867,3679.6,3679.1,0.2495]
[1753453076568,2.71798217,3679.2,3679.1,0.2495]
[1753453076768,7.18398217,3679.2,3679.1,0.2495]
[1753453076989,2.85398217,3679.2,3679.1,0.2495]
[1753453077206,5.61203158,3679.2,3679.1,0.2495]
[1753453077601,1.67712245,3679.2,3679.1,0.2495]
[1753453077909,4.39510462,3679.2,3679.1,0.2495]
[1753453078111,4.42907939,3679.2,3679.1,0.2495]
[1753453079167,0.9359,3679.1,3677.5,0.9584]
[1753453079365,0.9359,3679.1,3677.6,0.9584]
[1753453079366,14.38159091,3679.0,3677.6,0.9584]
[1753453079631,3.24624665,3678.9,3677.6,0.9584]
[1753453079805,3.0,3678.7,3677.2,0.9584]
[1753453080071,2.71903418,3677.8,3677.2,0.9584]
[1753453080318,0.24882245,3677.7,3677.3,0.3293]
[1753453080614,0.24882245,3677.6,3677.4,5.6427]
[1753453080809,0.24882245,3677.5,3676.7,3.19905476]
[1753453081023,0.20519364,3680.3,3676.0,6.55417716]
[1753453081024,0.24882245,3677.4,3676.0,6.55417716]
[1753453081174,3.62219553,3678.1,3676.0,6.55417716]
[1753453081175,0.24882245,3677.3,3676.0,6.55417716]
[1753453081381,0.24882245,3677.2,3676.2,3.0]
[1753453081610,0.24882245,3677.1,3676.1,5.72025612]
[1753453081776,0.24882245,3677.0,3676.5,2.71995251]
[1753453082124,0.24882245,3676.9,3676.8,5.7197563]
[1753453082269,0.24922546,3678.5,3677.0,0.3691]
[1753453082472,0.24924539,3679.6,3677.3,0.55]
[1753453082816,0.24924539,3679.6,3677.0,2.71955284]
[1753453082817,1.86435743,3679.5,3677.8,0.3691]
[1753453083002,2.71798217,3679.2,3677.8,0.3691]
[1753453083176,2.71844478,3678.6,3677.8,0.3691]
[1753453083390,1.67755205,3679.1,3677.8,0.3691]
[1753453083391,2.71873406,3678.2,3677.8,0.3691]
[1753453083592,2.71894287,3677.9,3677.8,0.3691]
[1753453083821,2.71909073,3677.7,3677.6,0.001]
[1753453084237,4.83402409,3677.7,3677.6,0.001]
[1753453084403,5.08333907,3677.7,3677.6,0.001]
[1753453084745,4.65033907,3677.7,3677.6,0.001]
[1753453084901,2.96840571,3677.7,3677.6,0.001]
[1753453085341,2.71890903,3678.0,3677.6,0.001]
[1753453085488,1.4283,3678.3,3677.6,0.001]
[1753453085690,2.71891958,3678.0,3677.6,0.001]
[1753453086024,2.71900032,3677.9,3677.6,0.001]
[1753453086229,1.4003,3678.6,3677.6,0.001]
[1753453086392,2.71835212,3678.7,3677.7,1.2439]
[1753453086724,1.97208399,3679.1,3677.7,1.2439]
[1753453086928,2.71837199,3678.7,3677.7,1.2439]
[1753453087181,1.97208399,3679.1,3677.6,0.001]
[1753453087320,1.4003,3678.7,3677.6,0.001]
[1753453087518,0.136,3678.2,3677.7,0.136]
[1753453087830,0.931,3678.1,3677.7,0.136]
[1753453088027,2.7190168,3677.8,3677.6,0.001]
[1753453088213,2.71909073,3677.7,3677.6,0.137]
[1753453088530,2.7190528,3677.8,3677.6,0.137]
[1753453088709,1.43428586,3678.0,3677.6,0.137]
[1753453088913,4.11939073,3677.7,3677.6,0.001]
[1753453089107,0.136,3677.9,3677.6,0.001]
[1753453089304,2.71909073,3677.7,3677.6,0.001]
[1753453090526,2.71905019,3677.8,3677.6,0.001]
[1753453090834,2.85479503,3678.1,3677.6,0.137]
[1753453091002,2.71903233,3677.8,3677.6,0.137]
[1753453091204,2.71904123,3677.8,3677.6,0.137]
[1753453091417,2.71909073,3677.7,3677.6,0.137]
[1753453091814,2.71909073,3677.7,3677.6,0.001]
[1753453092415,3.18839073,3677.7,3677.6,0.001]
[1753453092622,2.71909073,3677.7,3677.6,0.001]
[1753453093795,4.11939073,3677.7,3677.6,0.001]
[1753453094303,8.51739073,3677.7,3677.6,0.001]
[1753453095714,4.11939073,3677.7,3677.6,0.001]
[1753453096046,7.11209073,3677.7,3677.6,0.001]
[1753453096236,8.51239073,3677.7,3677.6,0.001]
[1753453096546,10.60522518,3677.7,3677.6,0.001]
[1753453096762,10.60522518,3677.7,3677.6,1e-08]
[1753453096763,6.21222518,3677.7,3677.6,1e-08]
[1753453096961,6.21222518,3677.7,3676.8,0.001]
[1753453096962,2.71968234,3676.9,3676.8,0.001]
[1753453097109,0.0339951,3677.0,3676.8,0.001]
[1753453097450,7.11268234,3676.9,3676.8,0.001]
[1753453097934,2.71968234,3676.9,3676.8,0.001]
[1753453098333,4.391,3676.9,3676.8,0.001]
[1753453098645,7.11068234,3676.9,3676.8,0.001]
[1753453099436,8.51098234,3676.9,3676.8,0.001]
[1753453099626,2.71968234,3676.9,3676.8,0.001]
[1753453099929,4.11998234,3676.9,3676.8,0.001]
[1753453100258,18.58860446,3676.9,3676.8,1e-08]
[1753453100549,14.41396711,3676.9,3676.8,1e-08]
[1753453100765,0.9834,3677.6,3676.8,1e-08]
[1753453100962,0.24834307,3677.5,3676.8,0.91460001]
[1753453101249,4.398,3677.7,3676.8,1e-08]
[1753453101560,0.9834,3678.1,3676.9,1.2837]
[1753453101853,4.398,3678.0,3677.0,0.9146]
[1753453102036,4.11923823,3678.0,3676.9,0.3691]
[1753453102265,4.398,3677.9,3677.0,3.63414386]
[1753453102439,7.11694954,3677.9,3677.0,3.63414386]
[1753453102644,2.71915354,3677.7,3677.0,0.9146]
[1753453102842,2.71919921,3677.6,3677.0,0.9146]
[1753453103240,2.71951929,3677.2,3677.0,0.9146]
[1753453103555,2.71968234,3676.9,3676.8,1e-08]
[1753453103710,7.15267836,3676.9,3676.8,1e-08]
[1753453103916,7.11868234,3676.9,3676.8,1e-08]
[1753453104554,2.71968234,3676.9,3676.8,1e-08]
[1753453104774,4.11998234,3676.9,3676.8,1e-08]
[1753453104927,4.398,3677.1,3676.8,1e-08]
[1753453105250,4.4,3677.0,3676.8,0.13600001]
[1753453105455,4.15397836,3676.9,3676.8,1e-08]
[1753453105614,4.11998234,3676.9,3676.8,1e-08]
[1753453105957,4.25598234,3676.9,3676.8,1e-08]
[1753453106366,4.28997836,3676.9,3676.8,1e-08]
[1753453106831,4.25598234,3676.9,3676.8,1e-08]
[1753453107030,5.49152427,3676.9,3676.8,1e-08]
[1753453107440,5.52552029,3676.9,3676.8,1e-08]